bitfinex-derivatives/quotes_ETHF0:USTF0_20210102
["timestamp","ask_amount","ask_price","bid_price","bid_amount"]
[1609627199199,7.858,771.84,771.58,6.01438]
[1609627199601,15.0,771.83,771.58,6.01438]
[1609627200002,6.01438,771.63,771.58,6.01438]
[1609627201202,103.5477,771.59,771.58,6.01438]
[1609627201402,103.5477,771.59,771.21,4.717]
[1609627201602,103.5477,771.59,771.2,16.8896389]
[1609627202004,103.5477,771.59,771.55,6.01438]
[1609627202207,15.0,771.83,771.55,6.01438]
[1609627204107,6.01438,771.6,771.55,6.01438]
[1609627223835,7.858,771.84,771.55,6.01438]
[1609627224235,6.01438,771.7,771.55,6.01438]
[1609627226135,6.01438,771.7,771.67,6.01438]
[1609627230041,7.858,771.84,771.34,4.842]
[1609627230340,7.858,771.84,771.29,108.74638074]
[1609627230541,7.858,771.84,771.67,6.01438]
[1609627232542,6.01438,771.7,771.67,6.01438]
[1609627239155,11.4551,771.68,771.67,6.01438]
[1609627239755,6.01438,771.7,771.67,6.01438]
[1609627243958,95.8552,771.68,771.67,6.01438]
[1609627244760,6.01438,771.7,771.67,6.01438]
[1609627245361,6.01438,771.7,771.34,4.641]
[1609627245560,6.01438,771.7,771.31,16.86645305]
[1609627245760,6.01438,771.7,771.32,16.86633587]
[1609627246360,6.01438,771.7,771.32,19.83933587]
[1609627246861,98.902,771.73,771.53,6.01438]
[1609627248861,6.01438,771.54,771.53,6.01438]
[1609627249362,5.9923294,771.54,771.53,6.01438]
[1609627249964,98.902,771.73,771.32,2.973]
[1609627250865,98.902,771.73,771.53,6.01438]
[1609627252065,15.0,771.72,771.53,6.01438]
[1609627252467,15.0,771.72,771.32,2.973]
[1609627252669,15.0,771.72,771.29,16.85166324]
[1609627252868,15.0,771.72,771.38,6.01438]
[1609627253068,15.0,771.72,771.38,9.23138]
[1609627254969,6.01438,771.39,771.38,9.23138]
[1609627255568,15.0,771.72,771.38,3.217]
[1609627256675,15.0,771.71,771.38,3.217]
[1609627256875,86.4031,771.5,771.38,3.217]
[1609627257080,6.01438,771.39,771.38,3.217]
[1609627257275,17.81348,771.39,771.38,3.217]
[1609627258075,17.81348,771.39,771.16,16.85464822]
[1609627258275,6.01438,771.39,771.16,16.85464822]
[1609627258475,6.01438,771.39,771.04,3.561]
[1609627258476,93.2316,771.24,771.14,16.85365032]
[1609627259077,16.79378,771.15,771.14,22.86803032]
[1609627260480,31.79378,771.15,771.14,6.01438]
[1609627260681,21.01438,771.15,771.14,6.01438]
[1609627260879,21.01438,771.15,771.02,16.84272552]
[1609627261080,6.01438,771.03,771.02,16.84272552]
[1609627261280,21.01438,771.03,771.02,16.84272552]
[1609627261479,117.49968,771.03,771.02,16.84272552]
[1609627261882,117.49968,771.03,770.82,16.85661867]
[1609627263087,6.01438,770.83,770.82,16.85661867]
[1609627263287,6.01438,770.83,770.59,6.01438]
[1609627263687,13.7136,770.8,770.59,6.01438]
[1609627263887,15.0,770.82,770.59,6.01438]
[1609627264087,87.6569,770.72,770.59,6.01438]
[1609627264587,15.0,770.82,770.59,6.01438]
[1609627264787,75.7614,770.59,770.58,16.88630612]
[1609627264988,96.77578,770.59,770.45,16.88562802]
[1609627266589,21.01438,770.59,770.45,16.88562802]
[1609627266792,97.0846,770.46,770.22,16.91487949]
[1609627266993,6.01438,770.23,770.22,16.91487949]
[1609627267194,20.61088,770.23,770.22,16.91487949]
[1609627268895,20.61088,770.23,770.01,6.01438]
[1609627268896,6.01438,770.23,770.01,6.01438]
[1609627269094,6.01438,770.02,770.01,6.01438]
[1609627270297,6.01438,770.02,769.91,16.94462718]
[1609627270698,15.0,770.01,769.91,16.94462718]
[1609627271699,84.6195,769.92,769.91,16.94462718]
[1609627272300,99.6195,769.92,769.91,16.94462718]
[1609627272499,99.6195,769.92,769.91,1.50042718]
[1609627273101,105.63388,769.92,769.91,1.50042718]
[1609627273301,105.63388,769.92,769.55,20.08206314]
[1609627274001,105.63388,769.92,769.16,6.01438]
[1609627274002,21.01438,769.92,769.16,6.01438]
[1609627274400,100.6086,769.3,769.16,6.01438]
[1609627274602,15.0,769.73,769.16,6.01438]
[1609627274803,9.99938,769.92,769.16,9.74638]
[1609627275001,6.01438,769.34,769.3,6.01438]
[1609627275201,4.094,769.58,769.3,6.01438]
[1609627275401,4.094,769.58,769.33,90.1541]
[1609627275601,4.094,769.58,769.33,93.2851]
[1609627275803,4.094,769.58,769.33,3.131]
[1609627276003,4.094,769.58,769.38,88.9258]
[1609627276204,0.27851464,769.91,769.38,88.9258]
[1609627276509,3.985,769.92,769.38,88.9258]
[1609627277103,14.6894,769.91,769.79,6.01438]
[1609627277303,14.6894,769.91,769.38,88.9258]
[1609627278605,6.01438,769.92,769.46,101.704]
[1609627279007,0.27841764,770.05,769.46,101.704]
[1609627279206,0.27841764,770.05,769.87,6.01438]
[1609627279607,6.01438,770.13,769.87,6.01438]
[1609627280211,0.27844946,770.17,769.97,92.3396]
[1609627280812,0.27835754,770.32,769.96,4.738]
[1609627281212,0.27835754,770.32,770.28,6.01438]
[1609627282513,6.01438,770.5,770.28,6.01438]
[1609627283619,6.01438,770.5,770.23,2.981]
[1609627285119,6.01438,770.4,770.23,2.981]
[1609627286419,6.01438,770.4,770.13,6.01438]
[1609627287219,6.01438,770.4,770.25,6.01438]
[1609627290325,6.01438,770.4,770.21,3.342]
[1609627292529,6.01438,770.4,770.15,6.01438]
[1609627293230,6.01438,770.31,770.15,6.01438]
[1609627293629,104.2671,770.26,769.96,4.738]
[1609627293831,104.2671,770.26,769.84,16.98156501]
[1609627294932,5.1504063,770.62,769.84,16.98156501]
[1609627295332,6.01438,770.4,770.15,6.01438]
[1609627297236,6.01438,770.4,770.34,6.01438]
[1609627308449,4.029,770.68,770.34,6.01438]
[1609627309450,6.01438,770.52,770.34,6.01438]
[1609627321868,4.029,770.68,770.34,6.01438]
[1609627323471,4.029,770.68,770.59,6.01438]
[1609627333287,4.029,770.68,770.67,89.9186]
[1609627333688,4.029,770.68,770.67,95.93298]
[1609627333888,6.01438,770.87,770.67,95.93298]
[1609627335690,6.01438,770.87,770.84,6.01438]
[1609627335892,4.029,771.09,770.84,6.01438]
[1609627337692,4.029,771.09,770.92,6.01438]
[1609627338092,6.01438,771.13,770.92,6.01438]
[1609627339494,6.01438,771.13,770.96,11.8018]
[1609627339695,6.01438,771.13,771.06,6.01438]
[1609627361618,6.01438,771.13,770.86,4.286]
[1609627361818,6.01438,771.13,770.93,6.01438]
[1609627363718,6.01438,771.13,771.04,6.01438]
[1609627368622,6.01438,771.13,771.04,9.74438]
[1609627368825,6.01438,771.13,771.06,75.4295]
[1609627369724,6.01438,771.13,771.12,6.01438]
[1609627371627,8.058,771.38,771.12,6.01438]
[1609627371825,14.07238,771.38,771.12,6.01438]
[1609627373827,14.07238,771.38,771.27,6.01438]
[1609627374828,14.07238,771.38,771.29,13.1894]
[1609627377930,14.07238,771.38,771.35,6.01438]
[1609627382536,3.1786,771.38,771.35,6.01438]
[1609627382736,0.6756278,771.73,771.37,94.5107]
[1609627383435,0.67558782,771.79,771.37,109.5107]
[1609627383836,0.67558782,771.79,771.78,6.01438]
[1609627384037,4.029,771.84,771.78,6.01438]
[1609627384436,0.67553687,771.87,771.84,101.6053]
[1609627384637,6.01438,771.98,771.84,101.6053]
[1609627384638,0.67543124,771.9,771.84,101.6053]
[1609627385039,6.01438,771.98,771.84,101.6053]
[1609627385936,6.01438,771.98,771.97,6.01438]
[1609627387540,6.01438,771.98,771.95,100.1831]
[1609627390545,0.67534074,772.11,771.95,100.1831]
[1609627391046,4.70431645,772.22,771.95,100.1831]
[1609627391445,4.70431645,772.22,771.9,3.371]
[1609627391646,7.94489933,772.4,771.9,3.371]
[1609627391647,0.6752961,772.24,771.9,3.371]
[1609627391846,0.6752961,772.24,772.11,92.8295]
[1609627392048,0.6752961,772.24,772.23,6.01438]
[1609627392249,0.6752961,772.24,772.23,19.92698]
[1609627392751,6.29240705,772.27,772.23,19.92698]
[1609627393250,6.0938163,772.27,772.23,19.92698]
[1609627393454,6.01438,772.27,772.23,19.92698]
[1609627394957,6.01438,772.27,772.23,6.01438]
[1609627399160,0.67512032,772.52,772.23,6.01438]
[1609627399558,0.67512032,772.52,772.42,101.5848]
[1609627399759,4.7040471,772.56,772.42,101.5848]
[1609627399959,4.7040471,772.56,772.55,6.01438]
[1609627400158,4.7040471,772.56,772.42,101.5848]
[1609627400961,4.029,772.56,772.42,101.5848]
[1609627402060,4.029,772.56,772.55,20.80618]
[1609627402460,0.67499367,772.59,772.55,20.80618]
[1609627402861,4.60357631,772.63,772.55,20.80618]
[1609627402862,4.00798508,772.63,772.55,20.80618]
[1609627403062,4.00798508,772.63,772.55,6.01438]
[1609627403262,4.00798508,772.63,772.62,105.8124]
[1609627403462,3.333,772.63,772.62,105.8124]
[1609627403664,6.01438,772.65,772.62,105.8124]
[1609627404066,6.01438,772.65,772.63,6.01438]
[1609627419387,0.67482566,772.82,772.54,100.5279]
[1609627420189,0.67482566,772.82,772.7,6.01438]
[1609627420389,0.67481452,772.83,772.7,6.01438]
[1609627420988,0.67481452,772.83,772.54,100.5279]
[1609627422289,6.01438,772.55,772.54,100.5279]
[1609627425292,6.01438,772.55,772.48,6.01438]
[1609627431200,6.01438,772.55,772.49,13.7442]
[1609627432403,6.01438,772.55,772.48,6.01438]
[1609627432603,6.01438,772.55,772.54,82.2266]
[1609627432805,0.67479179,772.8,772.54,82.2266]
[1609627433605,0.67481911,772.85,772.54,82.2266]
[1609627434608,6.01438,772.83,772.8,6.01438]
[1609627437710,6.01438,772.83,772.82,12.2856]
[1609627442414,4.66,772.86,772.82,12.2856]
[1609627442613,6.01438,772.91,772.82,12.2856]
[1609627444416,6.01438,772.91,772.8,6.01438]
[1609627444616,6.01438,772.91,772.89,6.01438]
[1609627453834,2.985,773.01,772.85,95.0666]
[1609627454329,2.00979963,773.07,772.85,95.0666]
[1609627454931,6.01438,772.92,772.89,6.01438]
[1609627474758,2.00979963,773.07,772.89,6.01438]
[1609627475358,2.00979963,773.07,773.06,6.01438]
[1609627477363,8.02417963,773.07,773.06,6.01438]
[1609627478968,8.02417963,773.07,772.78,3.881]
[1609627479371,8.02417963,773.07,772.95,6.01438]
[1609627481369,6.01438,772.98,772.95,6.01438]
[1609627486776,2.00979963,773.07,772.93,101.1098]
[1609627487480,2.00979963,773.07,772.99,6.01438]
[1609627489479,6.01438,773.0,772.99,6.01438]
[1609627490382,6.01438,773.0,772.78,3.881]
[1609627490786,6.01438,773.0,772.72,84.9439]
[1609627490993,6.01438,773.0,772.57,21.66971624]
[1609627491389,6.01438,772.82,772.71,6.01438]
[1609627491587,6.01438,772.82,772.57,4.718]
[1609627491787,6.01438,772.82,772.54,16.95834133]
[1609627492283,6.01438,772.82,772.5,16.96126351]
[1609627492884,6.01438,772.82,772.45,16.96852464]
[1609627493385,15.0,773.0,772.67,6.01438]
[1609627493685,15.0,773.0,772.67,9.27838]
[1609627495387,6.01438,772.68,772.67,9.27838]
[1609627495586,6.01438,772.68,772.67,3.264]
[1609627497990,21.01438,772.68,772.67,3.264]
[1609627498388,21.01438,772.68,772.53,6.01438]
[1609627498790,21.01438,772.68,772.42,16.96764159]
[1609627499387,12.9563,772.66,772.42,16.96764159]
[1609627499588,6.01438,772.43,772.42,16.96764159]
[1609627499989,6.01438,772.43,772.39,6.01438]
[1609627502390,6.01438,772.43,772.35,4.063]
[1609627502590,6.01438,772.43,772.27,17.00213429]
[1609627503493,6.01438,772.28,772.27,17.00213429]
[1609627504290,89.7372,772.61,772.27,17.00213429]
[1609627504490,89.7372,772.61,772.27,20.06713429]
[1609627504893,89.7372,772.61,772.27,3.065]
[1609627505495,89.7372,772.61,772.47,6.01438]
[1609627505695,15.0,772.9,772.47,10.25738]
[1609627506097,15.0,772.96,772.47,10.25738]
[1609627507002,4.793,772.97,772.47,10.25738]
[1609627507201,15.0,772.96,772.47,10.25738]
[1609627507402,19.317,772.96,772.47,10.25738]
[1609627507602,19.317,772.96,772.67,6.01438]
[1609627508402,4.317,772.96,772.67,6.01438]
[1609627509505,6.01438,772.68,772.67,6.01438]
[1609627509705,6.01438,772.68,772.67,10.81138]
[1609627517715,15.0,773.06,772.67,10.81138]
[1609627519514,6.01438,772.9,772.84,6.01438]
[1609627527922,2.00979963,773.07,772.84,6.01438]
[1609627528523,2.00979963,773.07,772.86,88.071]
[1609627529523,2.00979963,773.07,773.06,6.01438]
[1609627530324,2.00979963,773.07,772.86,88.071]
[1609627531525,2.00979963,773.07,773.06,6.01438]
[1609627533530,8.02417963,773.07,773.06,6.01438]
[1609627550155,2.00979963,773.07,773.06,6.01438]
[1609627550756,2.00979963,773.07,773.06,20.44338]
[1609627552357,2.00979963,773.07,773.06,14.429]
[1609627553958,8.02417963,773.07,772.99,6.01438]
[1609627554361,8.02417963,773.07,773.02,93.6971]
[1609627569081,2.00979963,773.07,773.02,93.6971]
[1609627570177,6.01438,773.03,773.02,93.6971]
[1609627574089,6.01438,773.03,772.99,6.01438]
[1609627581197,6.01438,773.03,772.86,4.057]
[1609627581398,6.01438,773.03,772.79,75.2928]
[1609627582402,6.01438,772.82,772.79,75.2928]
[1609627585501,2.00979963,773.07,772.79,75.2928]
[1609627586401,6.01438,772.99,772.93,6.01438]
[1609627589002,6.01438,772.99,772.98,107.5062]
[1609627590203,2.00979963,773.07,772.98,107.5062]
[1609627590403,6.01438,773.01,772.98,107.5062]
[1609627590604,2.00979963,773.07,772.98,107.5062]
[1609627595313,2.00979963,773.07,772.93,6.01438]
[1609627596517,6.01438,773.0,772.93,6.01438]
[1609627601821,2.00979963,773.07,772.89,2.97]
[1609627602020,2.00979963,773.07,772.89,3.881]
[1609627602422,6.01438,772.95,772.9,6.01438]
[1609627605126,2.00979963,773.07,772.9,6.01438]
[1609627606628,6.01438,772.95,772.9,6.01438]
[1609627612334,6.01438,772.95,772.94,86.9231]
[1609627612533,2.00979963,773.07,772.94,101.9231]
[1609627612734,2.00979963,773.07,773.06,6.01438]
[1609627631354,1.98759013,773.07,773.06,6.01438]
[1609627684235,16.98759013,773.07,773.06,6.01438]
[1609627685031,16.98759013,773.07,773.05,4.899]
[1609627685233,16.98759013,773.07,773.03,73.644]
[1609627686032,16.98759013,773.07,772.89,9.89538]
[1609627687736,6.01438,772.9,772.89,9.89538]
[1609627687937,21.01438,772.9,772.89,9.89538]
[1609627689238,21.01438,772.9,772.89,3.881]
[1609627689536,21.01438,772.9,772.74,92.1654]
[1609627689735,6.01438,772.75,772.74,92.1654]
[1609627690738,21.01438,772.75,772.74,92.1654]
[1609627691840,21.01438,772.75,772.55,6.01438]
[1609627692240,15.0,772.74,772.55,6.01438]
[1609627693141,15.0,772.74,772.47,4.243]
[1609627693447,15.0,772.74,772.43,84.4992]
[1609627693642,6.01438,772.48,772.43,84.4992]
[1609627693842,15.0,772.73,772.43,84.4992]
[1609627694042,15.0,772.73,772.43,88.6652]
[1609627694842,15.0,772.72,772.43,88.6652]
[1609627695643,6.01438,772.44,772.43,88.6652]
[1609627713573,21.01438,772.44,772.43,88.6652]
[1609627729994,21.01438,772.44,772.43,84.4992]
[1609627738202,21.01438,772.44,772.28,6.01438]
[1609627740106,6.01438,772.29,772.28,6.01438]
[1609627746416,15.0,772.44,772.22,84.8448]
[1609627746916,6.01438,772.23,772.22,84.8448]
[1609627748119,15.0,772.44,772.22,84.8448]
[1609627748924,6.01438,772.23,772.22,84.8448]
[1609627750026,4.455,772.45,772.22,84.8448]
[1609627750225,4.262,772.62,772.22,84.8448]
[1609627750424,15.0,772.75,772.22,84.8448]
[1609627750626,15.0,772.91,772.22,84.8448]
[1609627750927,15.0,772.91,772.45,6.01438]
[1609627751327,15.0,772.91,772.46,105.3387]
[1609627751529,15.0,772.97,772.46,105.3387]
[1609627751728,15.0,772.9,772.46,105.3387]
[1609627752829,15.0,772.89,772.46,105.3387]
[1609627753028,6.01438,772.74,772.64,6.01438]
[1609627755131,15.0,772.97,772.64,6.01438]
[1609627755330,1.98759013,773.07,772.64,6.01438]
[1609627755530,1.98759013,773.07,772.66,12.0653]
[1609627757232,6.01438,772.75,772.66,12.0653]
[1609627758133,1.98759013,773.07,772.66,12.0653]
[1609627758933,6.01438,772.91,772.77,6.01438]
[1609627765445,21.01438,772.91,772.77,6.01438]
[1609627767147,21.01438,772.91,772.77,106.23288]
[1609627769151,21.01438,772.91,772.85,6.01438]
[1609627770151,15.0,772.91,772.77,100.2185]
[1609627770351,15.0,772.9,772.77,100.2185]
[1609627771055,6.01438,772.87,772.85,6.01438]
[1609627771252,15.0,772.86,772.85,6.01438]
[1609627774956,15.0,772.86,772.77,100.2185]
[1609627775357,15.0,772.86,772.69,6.01438]
[1609627775757,6.01438,772.87,772.82,84.2776]
[1609627776257,6.01438,772.87,772.69,6.01438]
[1609627776458,6.01438,772.87,772.7,107.029]
[1609627777058,6.01438,772.87,772.85,6.01438]
[1609627778865,21.01438,772.87,772.85,6.01438]
[1609627779965,21.01438,772.87,772.86,15.1016]
[1609627780165,6.01438,772.87,772.86,15.1016]
[1609627793692,21.01438,772.87,772.86,15.1016]
[1609627800003,6.01438,772.87,772.86,15.1016]
[1609627806608,6.01438,772.87,772.63,6.01438]
[1609627806609,21.01438,772.87,772.63,6.01438]
[1609627806807,21.01438,772.87,772.51,4.056]
[1609627807007,21.01438,772.87,772.45,101.9645]
[1609627807408,6.01438,772.55,772.45,101.9645]
[1609627808209,6.01438,772.55,772.36,6.01438]
[1609627808608,21.01438,772.55,772.36,6.01438]
[1609627809408,6.01438,772.45,772.36,6.01438]
[1609627811311,6.01438,772.37,772.36,6.01438]
[1609627811514,21.01438,772.37,772.24,17.20876666]
[1609627812112,21.01438,772.37,772.15,108.367]
[1609627812118,15.0,772.36,772.15,108.367]
[1609627812311,15.0,772.36,772.1,17.2223342]
[1609627813312,6.01438,772.11,772.1,17.2223342]
[1609627813512,21.01438,772.11,772.1,17.2223342]
[1609627815516,21.01438,772.11,772.0,17.23930426]
[1609627815716,21.01438,772.11,771.79,23.28120989]
[1609627817317,21.01438,772.11,771.33,26.68510074]
[1609627817318,15.0,772.11,772.0,6.01438]
[1609627817517,15.0,772.1,772.0,6.01438]
[1609627818619,15.0,772.09,772.0,6.01438]
[1609627819319,6.01438,772.01,772.0,6.01438]
[1609627819521,21.01438,772.01,772.0,6.01438]
[1609627819721,25.36038,772.01,772.0,6.01438]
[1609627823224,10.36038,772.01,772.0,6.01438]
[1609627829133,25.36038,772.01,772.0,6.01438]
[1609627834444,118.98888,772.01,772.0,6.01438]
[1609627834645,118.98888,772.01,771.73,17.26697964]
[1609627835243,118.98888,772.01,771.72,17.2670044]
[1609627835645,6.01438,771.8,771.79,6.01438]
[1609627838949,4.346,772.01,771.79,6.01438]
[1609627839149,4.204,772.18,771.79,6.01438]
[1609627839551,4.204,772.18,771.71,110.3017]
[1609627839552,6.01438,772.01,771.91,6.01438]
[1609627839953,4.234,772.15,771.91,6.01438]
[1609627841654,4.234,772.15,771.71,110.3017]
[1609627841655,6.01438,772.12,772.03,6.01438]
[1609627843557,6.01438,772.12,772.11,6.01438]
[1609627847863,6.01438,772.12,771.87,17.21686038]
[1609627848464,6.01438,772.12,771.86,17.21691344]
[1609627849665,6.01438,772.12,772.08,6.01438]
[1609627851671,6.01438,772.12,771.84,17.22435364]
[1609627851973,6.01438,772.12,771.83,17.22451433]
[1609627853573,6.01438,772.03,771.92,6.01438]
[1609627855478,4.029,772.29,771.92,6.01438]
[1609627855677,6.01438,772.11,771.92,10.41738]
[1609627857581,4.029,772.29,772.05,6.01438]
[1609627859585,6.01438,772.06,772.05,6.01438]
[1609627862188,6.01438,772.06,771.92,4.403]
[1609627862388,6.01438,772.06,771.87,17.25174968]
[1609627863189,6.01438,772.06,771.83,17.25944954]
[1609627863689,6.01438,772.06,771.91,6.01438]
[1609627865689,6.01438,771.98,771.91,6.01438]
[1609627866089,3.172,772.19,771.91,6.01438]
[1609627866289,15.0,772.18,771.91,6.01438]
[1609627867291,18.172,772.19,771.91,6.01438]
[1609627867692,6.01438,771.97,771.91,6.01438]
[1609627868094,18.172,772.19,771.91,6.01438]
[1609627869695,6.01438,772.06,771.91,6.01438]
[1609627873503,6.01438,772.06,771.8,92.7776]
[1609627875201,21.01438,772.06,771.8,92.7776]
[1609627875702,6.01438,771.96,771.79,6.01438]
[1609627875903,89.601,771.8,771.79,6.01438]
[1609627877206,6.01438,771.96,771.79,6.01438]
[1609627877910,6.01438,771.85,771.79,6.01438]
[1609627879812,6.01438,771.85,771.58,17.29872063]
[1609627881914,6.01438,771.76,771.58,17.29872063]
[1609627885418,6.01438,771.76,771.57,23.31755545]
[1609627886721,6.01438,771.76,771.57,6.01438]
[1609627888025,6.01438,771.67,771.57,6.01438]
[1609627889624,3.523,771.92,771.57,6.01438]
[1609627889825,15.0,772.18,771.57,6.01438]
[1609627890027,6.01438,771.79,771.71,6.01438]
[1609627891927,3.086,771.87,771.71,6.01438]
[1609627892127,3.086,771.87,771.82,6.01438]
[1609627895732,6.01438,771.93,771.82,6.01438]
[1609627896937,6.01438,771.93,771.65,82.2358]
[1609627897142,9.82738,771.93,771.59,17.29895432]
[1609627897737,15.0,771.92,771.59,17.29895432]
[1609627898037,15.0,771.92,771.68,6.01438]
[1609627901237,14.97967847,771.92,771.68,6.01438]
[1609627902339,14.97967847,771.91,771.68,6.01438]
[1609627904144,6.01438,771.81,771.68,6.01438]
[1609627907748,6.01438,771.81,771.61,103.7087]
[1609627911650,6.01438,771.81,771.52,6.01438]
[1609627912150,6.01438,771.73,771.52,6.01438]
[1609627913051,6.01438,771.73,771.5,17.33871862]
[1609627913251,6.01438,771.73,771.48,17.34244722]
[1609627914052,6.01438,771.73,771.45,4.487]
[1609627914251,6.01438,771.73,771.43,17.34915159]
[1609627915853,6.01438,771.73,771.42,17.34921565]
[1609627917954,6.01438,771.73,771.41,17.35267786]
[1609627918254,6.01438,771.61,771.41,17.35267786]
[1609627919057,6.01438,771.61,771.42,17.35212199]
[1609627919656,6.01438,771.61,771.42,21.59712199]
[1609627920056,6.01438,771.61,771.42,4.245]
[1609627920656,105.6858,771.46,771.42,4.245]
[1609627921256,120.66547847,771.46,771.42,4.245]
[1609627921457,14.97967847,771.46,771.42,4.245]
[1609627921859,14.97967847,771.46,771.4,17.35881271]
[1609627922259,6.01438,771.41,771.37,17.36708402]
[1609627922460,14.97967847,771.4,771.37,17.36708402]
[1609627923061,14.97967847,771.4,771.19,6.01438]
[1609627924262,6.01438,771.2,771.19,6.01438]
[1609627927665,98.45678,771.2,771.19,6.01438]
[1609627928865,6.01438,771.2,771.19,6.01438]
[1609627933673,4.018,771.43,771.19,84.62178]
[1609627933873,4.029,771.69,771.19,84.62178]
[1609627934472,4.029,771.69,771.54,6.01438]
[1609627937175,6.01438,771.77,771.54,6.01438]
[1609627938575,6.01438,771.77,771.7,6.01438]
[1609627944578,6.01438,771.85,771.7,6.01438]
[1609627946279,6.01438,771.85,771.59,77.9172]
[1609627947482,15.0,771.84,771.55,2.994]
[1609627947681,15.0,771.84,771.49,17.39377021]
[1609627948182,15.0,771.84,771.4,17.41081599]
[1609627948781,6.01438,771.71,771.44,6.01438]
[1609627950483,21.01438,771.71,771.44,6.01438]
[1609627950684,6.01438,771.6,771.44,6.01438]
[1609627950885,6.01438,771.6,771.48,100.8547]
[1609627951484,21.01438,771.6,771.48,100.8547]
[1609627951686,21.01438,771.6,771.37,4.887]
[1609627951884,21.01438,771.6,771.32,17.42682442]
[1609627952785,6.01438,771.36,771.32,17.42682442]
[1609627954089,6.01438,771.36,771.23,6.01438]
[1609627954788,6.01438,771.28,771.23,6.01438]
[1609627958693,6.01438,771.28,771.09,4.641]
[1609627958891,88.8657,771.1,771.06,17.46325036]
[1609627960492,88.8657,771.1,771.05,17.46870383]
[1609627960693,6.01438,771.06,771.05,17.46870383]
[1609627963498,6.01438,771.06,770.88,17.49262562]
[1609627964097,6.01438,771.06,770.73,26.68748301]
[1609627964098,6.01438,771.06,770.86,17.49774648]
[1609627964801,6.01438,770.89,770.86,17.49774648]
[1609627965300,6.01438,770.89,770.85,17.49778882]
[1609627966601,111.05718,770.89,770.85,17.49778882]
[1609627966804,111.05718,770.89,770.84,17.49769629]
[1609627967002,6.01438,770.89,770.84,17.49769629]
[1609627967704,6.01438,770.89,770.82,17.49852248]
[1609627968106,6.01438,770.89,770.8,17.49855757]
[1609627968304,10.67138,770.89,770.8,17.49855757]
[1609627968807,10.67138,770.89,770.77,17.49940409]
[1609627970509,10.67138,770.89,770.78,17.50016535]
[1609627970908,6.01438,770.79,770.78,17.50016535]
[1609627971108,6.01438,770.79,770.65,6.01438]
[1609627971109,6.01438,770.79,770.75,17.499471]
[1609627975114,6.01438,770.79,770.76,17.49978831]
[1609627975314,21.01438,770.79,770.76,17.49978831]
[1609627975614,6.01438,770.79,770.76,17.49978831]
[1609627976016,6.01438,770.79,770.65,17.50256361]
[1609627976818,6.01438,770.66,770.65,17.50256361]
[1609627977118,6.01438,770.66,770.59,17.504568]
[1609627978122,6.01438,770.66,770.53,17.50424659]
[1609627978921,6.01438,770.54,770.53,17.50424659]
[1609627979822,6.01438,770.54,770.52,17.50542047]
[1609627980625,6.01438,770.54,769.9,30.23663535]
[1609627980626,6.01438,770.54,770.47,17.50576641]
[1609627981326,6.01438,770.54,770.43,17.5057337]
[1609627982128,6.01438,770.54,770.41,18.10685628]
[1609627982829,6.01438,770.54,770.41,0.6]
[1609627983029,6.01438,770.42,770.41,0.6]
[1609627985430,85.99898,770.42,770.41,0.6]
[1609627987431,6.01438,770.42,770.41,0.6]
[1609627988032,6.01438,770.42,770.35,17.50835137]
[1609627989234,6.01438,770.42,770.33,17.50845108]
[1609627990636,6.01438,770.42,770.34,17.50801538]
[1609627998548,6.01438,770.42,770.3,17.51083013]
[1609627999247,6.01438,770.31,770.3,17.51083013]
[1609627999649,6.01438,770.31,770.28,17.51096842]